Cogmind - Beta 17 @@@ ROGUE MODE // 2026.07.25 @ 15:45:35 // Winter2019/RPGLIKE Player: Gallgagger Result: Self-destructed Performance ------------- Evolutions (1) 500 Regions Visited (5) 1000 Robots Destroyed (8) 40 Value Destroyed (222) 222 Prototype IDs (25) 500 Alien Tech Used (0) 0 Bonus (500) 500 TOTAL SCORE: 2762 Bonus ------- Pacifist 200 Aligned with FarCom 300 Cogmind --------- Core Integrity 197/950 Matter 300/300 Energy 39/100 System Corruption 5% Temperature Cool (1) Movement Flying (35) Location -8/Mines Parts ------- > --- POWER (1) -------- (None) > --- PROPULSION (1) --- VTOL Module > --- UTILITY (1) ------ System Mapper > --- WEAPON (3) ------- AWS/Thermal Guided Plasma Cannon > --- INVENTORY (1) ---- Skeleton Box Peak State ------------ > --- POWER ------------ (None) > --- PROPULSION ------- VTOL Module > --- UTILITY ---------- Experimental Energy Well > --- WEAPON ----------- AWS/Thermal Guided Plasma Cannon > --- INVENTORY -------- Skeleton Box [Rating: 35] Favorites ----------- Power None Propulsion VTOL Module Flight Unit VTOL Module Utility Skeleton Box Device Skeleton Box Storage Experimental Energy Well Hackware System Mapper Weapon AWS/Thermal Energy Gun AWS/Thermal Energy Cannon Guided Plasma Cannon Launcher Mini Grenade Launcher Build | -11 -10 -9 -9 -9 -8 ------- Run | Yrd Mat Mat Min Exi Min Slots Evolved 2 | . . . . 2 . Power . | . . . . . . Propulsion . | . . . . . . Utility . | . . . . . . Weapon 2 | . . . . 2 . Parts Attached 7 | . . . 1 3 3 Power . | . . . . . . Engine . | . . . . . . Core . | . . . . . . Reactor . | . . . . . . Propulsion 1 | . . . . . 1 Treads . | . . . . . . Leg . | . . . . . . Wheel . | . . . . . . Hover . | . . . . . . Flight 1 | . . . . . 1 Utility 3 | . . . . 1 2 Device 1 | . . . . 1 . Storage 1 | . . . . . 1 Processor . | . . . . . . Hackware 1 | . . . . . 1 Protection . | . . . . . . Artifact . | . . . . . . Weapon 3 | . . . 1 2 . Energy Gun 1 | . . . . 1 . Energy Cannon 1 | . . . . 1 . Ballistic Gun . | . . . . . . Ballistic Cannon . | . . . . . . Launcher 1 | . . . 1 . . Special Weapon . | . . . . . . Impact Weapon . | . . . . . . Slashing Weapon . | . . . . . . Piercing Weapon . | . . . . . . Special Melee Weapon . | . . . . . . Unidentified Prototypes 2 | . . . . . 2 Parts Lost . | . . . . . . Power . | . . . . . . Propulsion . | . . . . . . Utility . | . . . . . . Weapon . | . . . . . . Highest Loss Streak . | . . . . . . To Critical Strikes . | . . . . . . Average Backups . | . . . . . . Power . | . . . . . . Propulsion . | . . . . . . Utility . | . . . . . . Weapon . | . . . . . . Tool/Special . | . . . . . . Unused Backups . | . . . . . . Power . | . . . . . . Propulsion . | . . . . . . Utility . | . . . . . . Weapon . | . . . . . . Tool/Special . | . . . . . . Average Slot Usage (%) 31 | . . . 16 42 44 Flight 1 | . . . . . 4 Device 7 | . . . . 11 13 Energy Gun 8 | . . . . 10 16 Energy Cannon 6 | . . . . 11 9 Launcher 7 | . . . 16 7 . Peak Build Rating 35 | . . . 2 30 35 Average Rating 15 | . . . 1 22 26 On Entrance 5 | . . . . 2 30 Avg Prop Armor Cover (%) . | . . . . . . Naked Turns 145 | . 48 18 79 . . Heaviest Build 20 | . . . 1 20 20 Greatest Support 19 | 3 3 3 3 18 19 Greatest Overweight (x) 1 | . . . . 1 1 Average Overweight (x) . | . . . . . . Largest Inventory Capacity 1 | . . . . . 1 Average Capacity . | . . . . . . Most Carried 1 | . . . . . 1 Average Carried . | . . . . . . Final Capacity 1 | . . . . . 1 Final Carried 1 | . . . . . 1 Class Distribution -------------------- 60% | Mutant 39% | Gunner Dominant Class ---------------- Mutant | -10/Materials Mutant | -9/Materials Mutant | -9/Mines Gunner | -9/Exiles Gunner | -8/Mines Resources | -11 -10 -9 -9 -9 -8 ----------- Run | Yrd Mat Mat Min Exi Min Matter Collected 335 | 44 . 15 162 . 114 Remotely . | . . . . . . Salvage Created 433 | . . 15 115 . 303 Parts 16 | . . 4 5 . 7 Haulers Intercepted . | . . . . . . Recyclers Shooed . | . . . . . . Parts Field Recycled . | . . . . . . Retrieved Matter . | . . . . . . Parts Self-Destructed . | . . . . . . Prevented . | . . . . . . Parts Restored . | . . . . . . Kills | -11 -10 -9 -9 -9 -8 ------- Run | Yrd Mat Mat Min Exi Min Combat Hostiles Destroyed 6 | . . . 3 . 3 Guns 2 | . . . . . 2 Cannons 1 | . . . . . 1 AOE 3 | . . . 3 . . Classes Destroyed 4 | . . 1 1 . 2 Builder 1 | . . . . . 1 Tunneler 1 | . . 1 . . . Grunt 4 | . . . 3 . 1 Duelist 1 | . . . . . 1 Best Kill Streak 3 | . . 1 3 . 2 Combat Bots Only 3 | . . . 3 . 2 Max Kills in Single Turn 2 | . . 1 2 . 1 Gunslinging . | . . . . . . Exploded 2 | . . . 2 . . Melee . | . . . . . . Uniques/NPCs Destroyed 1 | . . . . . 1 ME-RLN (-8/Mines) Combat | -11 -10 -9 -9 -9 -8 -------- Run | Yrd Mat Mat Min Exi Min Hostile Shots Fired 209 | . . 9 17 . 183 Missed 68 | . . 3 6 . 59 Hits 141 | . . 6 11 . 124 Projectile 141 | . . 6 11 . 124 Part Disruptions 5 | . . . . . 5 Damage Taken 947 | . . 77 146 . 724 Core 822 | . . 77 145 . 600 Absorbed by Shields . | . . . . . . Redirected to Core 347 | . . . . . 347 Core Remaining (%) 100 | 100 100 . . . . Volleys Fired 12 | . . . 2 2 8 Largest 1 | . . . 1 1 1 Hottest 120 | . . . 30 120 120 Shots Fired 68 | . . . 2 2 64 Gun 56 | . . . . . 56 Cannon 10 | . . . . 2 8 Launcher 2 | . . . 2 . . Special . | . . . . . . Kinetic . | . . . . . . Thermal 66 | . . . . 2 64 Explosive 2 | . . . 2 . . Electromagnetic . | . . . . . . Robot Hit Streak 8 | . . . 2 . 8 Robot Miss Streak 3 | . . . . . 3 Penetration Max . | . . . . . . Secondary Targets . | . . . . . . Autonomous 57 | . . . . . 57 Shots Hit Robots 44 | . . . 2 . 42 Core Hits 14 | . . 1 4 . 9 Critical Kills . | . . . . . . Critical Parts Destroyed . | . . . . . . Critical Strikes . | . . . . . . Melee Attacks . | . . . . . . Impact . | . . . . . . Slashing . | . . . . . . Piercing . | . . . . . . Sneak Attacks . | . . . . . . Combat Hostiles . | . . . . . . Follow-up Attacks . | . . . . . . Damage Inflicted 1246 | . . 12 172 . 1062 Guns 851 | . . . . . 851 Cannons 211 | . . . . . 211 Explosions 152 | . . . 152 . . Melee . | . . . . . . Ramming 32 | . . 12 20 . . Kinetic . | . . . . . . Thermal 1062 | . . . . . 1062 Explosive 152 | . . . 152 . . Electromagnetic . | . . . . . . Impact . | . . . . . . Slashing . | . . . . . . Piercing . | . . . . . . Highest Corruption 5 | . . . 1 1 5 Average Corruption 2 | . . . 1 1 4 Corruption Purged . | . . . . . . Corruption Blocked . | . . . . . . Effects 10 | . . . 1 2 7 Message Errors 1 | . . . . . 1 Matter Fused 4 | . . . 1 2 1 Energy Discharges 2 | . . . . . 2 Parts Rejected 2 | . . . . . 2 Data Loss (minor) 1 | . . . . . 1 Overload Shots . | . . . . . . Overflow Damage . | . . . . . . Projectiles . | . . . . . . Explosions . | . . . . . . Melee . | . . . . . . Knockbacks . | . . . . . . Impact . | . . . . . . Kinetic . | . . . . . . Secondary . | . . . . . . Self-Inflicted Damage 15 | . . 6 9 . . Shots . | . . . . . . Rammed 5 | . . 1 4 . . Targets Rammed 5 | . . 1 4 . . Kicked . | . . . . . . Crushed . | . . . . . . Highest Temperature 280 | . . . 5 70 280 Average Temperature 98 | . . . 5 42 112 Received Heat Transfer 102 | . . . 75 . 27 Siege Activations . | . . . . . . Martial Activations . | . . . . . . Shielding Activations . | . . . . . . Robots Disrupted . | . . . . . . Combat Hostiles . | . . . . . . Robots Corrupted . | . . . . . . Combat Hostiles . | . . . . . . Parts Fried . | . . . . . . Impact Corruptions . | . . . . . . Robots Melted . | . . . . . . Combat Hostiles . | . . . . . . Parts Melted . | . . . . . . Heat Transferred 810 | . . . . . 810 Parts Sabotaged . | . . . . . . Parts Stolen . | . . . . . . Parts Stripped . | . . . . . . Power Chain Reactions . | . . . . . . Alert | -11 -10 -9 -9 -9 -8 ------- Run | Yrd Mat Mat Min Exi Min Maximum Alert Level . | . . . . . . Low Security (%) 100 | 100 100 100 100 . 100 Level 1 . | . . . . . . Level 2 . | . . . . . . Level 3 . | . . . . . . Level 4 . | . . . . . . Level 5 . | . . . . . . High Security . | . . . . . . Max Security . | . . . . . . Peak Influence 107 | . 15 10 107 . 56 Initial 5 | . . 5 3 . . Average 29 | . 1 7 51 . 17 Influence Increases 245 | . 15 5 137 . 88 Destroy 0b10 Robot/C 100 | . . . 60 . 40 Destroy 0b10 Robot/NC 5 | . . 5 . . . Destroy Leader 20 | . . . 10 . 10 Destroy Structure 45 | . . . 22 . 23 Lose Combat Pursuer 75 | . 15 . 45 . 15 Influence Decreases 245 | . . 10 120 27 88 Entered New Map 44 | . . 10 7 27 . Time Decay 201 | . . . 113 . 88 Squads Dispatched . | . . . . . . Investigation . | . . . . . . Extermination . | . . . . . . Reinforcement . | . . . . . . Assault . | . . . . . . Garrison . | . . . . . . Intercept . | . . . . . . Searches Triggered . | . . . . . . Construction Impeded . | . . . . . . Haulers Reinforced . | . . . . . . Active Scanning Responses . | . . . . . . Cargo Convoy Interrupts . | . . . . . . Stealth | -11 -10 -9 -9 -9 -8 --------- Run | Yrd Mat Mat Min Exi Min Distress Signals . | . . . . . . Communications Jammed . | . . . . . . Distress Signals . | . . . . . . Times Spotted 21 | . 2 5 6 2 6 Peak Tracking Total 9 | . 3 5 3 9 4 Tactical Retreats 3 | . 1 . 1 . 1 Traps | -11 -10 -9 -9 -9 -8 ------- Run | Yrd Mat Mat Min Exi Min Traps Triggered . | . . . . . . Indirectly . | . . . . . . Trap Hack Attempts . | . . . . . . Triggered . | . . . . . . Disarmed . | . . . . . . Reprogrammed . | . . . . . . Reused . | . . . . . . Traps Extracted . | . . . . . . Installed . | . . . . . . Triggered . | . . . . . . Machines | -11 -10 -9 -9 -9 -8 ---------- Run | Yrd Mat Mat Min Exi Min Machines Disabled 2 | . . . . 2 . Max in Single Turn 1 | . . . . 1 . Machines Repaired . | . . . . . . Machines Dismantled . | . . . . . . Machines Sabotaged . | . . . . . . Overloaded Fab Kills . | . . . . . . Hacking | -11 -10 -9 -9 -9 -8 --------- Run | Yrd Mat Mat Min Exi Min Machines Accessed 1 | . . . . 1 . Terminals . | . . . . . . Fabricators . | . . . . . . Repair Stations . | . . . . . . Recycling Units . | . . . . . . Scanalyzers . | . . . . . . Garrison Access . | . . . . . . Total Hacks 1 | . . . . 1 . Successful 1 | . . . . 1 . Failed . | . . . . . . Catastrophic . | . . . . . . Database Lockouts . | . . . . . . Manual 1 | . . . . 1 . Terminals . | . . . . . . Fabricators . | . . . . . . Repair Stations . | . . . . . . Recycling Units . | . . . . . . Scanalyzers . | . . . . . . Garrison Access . | . . . . . . Terminal Hacks 1 | . . . . 1 . Proto ID Catalog 1 | . . . . 1 . Fabricator Hacks . | . . . . . . Repair Station Hacks . | . . . . . . Recycling Unit Hacks . | . . . . . . Scanalyzer . | . . . . . . Garrison Access Hacks . | . . . . . . Unauthorized Hacks . | . . . . . . Terminals . | . . . . . . Fabricators . | . . . . . . Repair Stations . | . . . . . . Recycling Units . | . . . . . . Scanalyzers . | . . . . . . Garrison Access . | . . . . . . Data Cores Recovered . | . . . . . . Used . | . . . . . . Hacking Detections . | . . . . . . Full Trace Events . | . . . . . . Feedback Events . | . . . . . . Feedback Blocked . | . . . . . . Robot Schematics Acquired . | . . . . . . Robots Built . | . . . . . . Authchips . | . . . . . . Time . | . . . . . . Total Robot Build Rating . | . . . . . . Part Schematics Acquired . | . . . . . . Parts Built . | . . . . . . Authchips . | . . . . . . Time . | . . . . . . Total Part Build Rating . | . . . . . . Part Studies Acquired . | . . . . . . Parts Repaired . | . . . . . . Time . | . . . . . . Parts Recycled . | . . . . . . Recycled Matter . | . . . . . . Retrieved Matter . | . . . . . . Retrieved Components . | . . . . . . Parts Scanalyzed . | . . . . . . Part Schematics Acquired . | . . . . . . Parts Damaged . | . . . . . . Bothacking | -11 -10 -9 -9 -9 -8 ------------ Run | Yrd Mat Mat Min Exi Min Used RIF Installer . | . . . . . . Robots Hacked . | . . . . . . Non-combat . | . . . . . . Combat . | . . . . . . Robot Hacks Applied . | . . . . . . Relay Couplers Released . | . . . . . . Fabnet Peak Effective % . | . . . . . . Robots Rewired . | . . . . . . Allies Hacked . | . . . . . . Hacks Repelled . | . . . . . . Allies | -11 -10 -9 -9 -9 -8 -------- Run | Yrd Mat Mat Min Exi Min Total Allies . | . . . . . . Largest Group . | . . . . . . Highest-Rated Group . | . . . . . . Highest-Rated Ally . | . . . . . . Total Orders . | . . . . . . Ally Attacks . | . . . . . . Total Damage . | . . . . . . Kills . | . . . . . . Allies Corrupted . | . . . . . . Allies Melted . | . . . . . . Intel | -11 -10 -9 -9 -9 -8 ------- Run | Yrd Mat Mat Min Exi Min Active Infowar (turns) . | . . . . . . Robot Analysis Total . | . . . . . . Derelict Logs Recovered 2 | . . . 2 . . Drone Launches . | . . . . . . Drone Recoveries . | . . . . . . Exploration | -11 -10 -9 -9 -9 -8 ------------- Run | Yrd Mat Mat Min Exi Min Turns Passed 814 | 11 48 18 248 226 263 Spaces Moved 1330 | 21 96 34 470 279 430 Core 1167 | 21 96 34 470 279 267 Treads . | . . . . . . Legs . | . . . . . . Wheels . | . . . . . . Hover . | . . . . . . Flight 163 | . . . . . 163 Fastest Speed 35 | 50 50 50 50 50 35 Average Speed 57 | 50 50 50 50 78 54 Slowest Speed 115 | 50 50 50 50 100 115 Overloaded Moves . | . . . . . . Propulsion Burnouts . | . . . . . . Robots Hopped 4 | . . . . . 4 Potential Cave-ins . | . . . . . . Cave-ins Triggered . | . . . . . . Exploration Rate (%) 39 | 3 26 8 86 62 49 Regions Visited 5 Branch Regions 3 Pre-discovered Areas 2 | . . . 2 . . Known Exits Taken . | . . . . . . Unknown Exits Taken 5 | 1 1 1 1 1 . Scrap Searched 2 | . . . 1 . 1 Spaces Dug . | . . . . . . Terrain Destroyed 48 | . . . 25 . 23 Melee . | . . . . . . Projectile 23 | . . . . . 23 AOE 25 | . . . 25 . . Terrain Rammed . | . . . . . . Walls Destroyed . | . . . . . . Machines Disabled . | . . . . . . Actions | -11 -10 -9 -9 -9 -8 --------- Run | Yrd Mat Mat Min Exi Min Total 1356 | 20 95 34 479 283 445 Wait 2 | . . . . . 2 Move 1317 | 20 95 33 469 278 422 Hop 4 | . . . . . 4 Pick Up 1 | . . . . . 1 Fast Attach 8 | . . . 1 2 5 Attach . | . . . . . . Detach . | . . . . . . Swap 2 | . . . . 1 1 Drop 2 | . . . . . 2 Fire 12 | . . . 2 2 8 Melee . | . . . . . . Ram 5 | . . 1 4 . . Kick . | . . . . . . Crush . | . . . . . . Escape Stasis . | . . . . . . Rewire . | . . . . . . Trap . | . . . . . . Miscellaneous 3 | . . . 3 . . Route ------- -11/Scrapyard -10/Materials -9/Materials -9/Mines (discovered 4 exits: [*Mat x2] / *Exi / [*Zio]) -9/Exiles (discovered 2 exits: [*Min x2]) -8/Mines History --------- Turn | Location | Event 3 | -11/Scrapyard | Discovered new exit (range 16) 12 | -11/Scrapyard | Entered Materials 56 | -10/Materials | Discovered new exit (range 5) 60 | -10/Materials | Entered another Materials area 62 | -9/Materials | Reached level 2 71 | -9/Materials | Discovered new exit (range 16) 78 | -9/Materials | Entered Mines 93 | -9/Mines | Discovered new exit (range 7) 118 | -9/Mines | YI-UF0 nonchalantly dropped a Grenade Launcher on the ground 120 | -9/Mines | Learned location of Storage (-7) 148 | -9/Mines | Learned Materials trap positions 205 | -9/Mines | A Derelict revealed a hidden shortcut to a safe place 221 | -9/Mines | Discovered new exit (range 14) 311 | -9/Mines | Build established: Mutant 323 | -9/Mines | Deemed a non-threat by the Exiles lab entrance 323 | -9/Mines | Discovered new exit (range 5) 326 | -9/Mines | Entered Exiles 335 | -9/Exiles | Discovered new exit (range 15) 340 | -9/Exiles | Met 8R-AWN 347 | -9/Exiles | Met EX-HEX 362 | -9/Exiles | Met EX-BIN 369 | -9/Exiles | Aligned with FarCom system 369 | -9/Exiles | Given EX-Vault access code 381 | -9/Exiles | Opened EX-Vault 384 | -9/Exiles | Found Gui. Plasma Cannon 388 | -9/Exiles | Found Skeleton Box 390 | -9/Exiles | Upgraded with Weapon slot (x2) 390 | -9/Exiles | Found AWS/Thermal 411 | -9/Exiles | Warned to stay clear of 0b10 Research branches 444 | -9/Exiles | Met EX-DEC 477 | -9/Exiles | Discovered new exit (range 14) 513 | -9/Exiles | Attacked by the Exiles 552 | -9/Exiles | Stole three prototypes: Skeleton Box, Gui. Plasma Cannon, AWS/Thermal 552 | -9/Exiles | Entered Mines 554 | -8/Mines | Reached level 3 578 | -8/Mines | ME-RLN came to Exiles' defense 609 | -8/Mines | Core integrity fell below 50% 633 | -8/Mines | Core integrity fell below 20% 798 | -8/Mines | AWS/Thermal suddenly broke down 805 | -8/Mines | Destroyed ME-RLN 812 | -8/Mines | Found Prototype Hackware 812 | -8/Mines | Identified System Mapper 815 | -8/Mines | Self-destructed Last Messages --------------- 00741_ Found 68 Matter. 00742_ Acquired 20 matter. 00742_ Acquired VTOL Module. 00743_ Acquired 10 matter. 00759_ Acquired Gui. Plasma Cannon. 00761_ Drone sends a signal. 00762_ Dropped Skeleton Box. 00763_ Upgraded: Inventory Capacity (+1) 00763_ Acquired Skeleton Box. 00767_ System corrupted: Matter fused (-10). 00798_ AWS/Thermal suddenly breaks down. 00805_ ME-RLN destroyed. 00810_ Acquired Prototype Storage. 00810_ Identified Exp. Energy Well. 00812_ Penetrated by Slug. 00812_ Acquired Prototype Hackware. 00812_ Identified System Mapper. 00814_ Acquired 40 matter. 00814_ K-01 Serf collects debris. 00815_ Penetrated by Slug. Map ----- +----------------------------------------------------+ | ???????????????????????????????????#[##??#######?? | | ???????????????????????????????????#*###?????????? | | ???????????????????????????????????#%####????????? | | ?????????????????????????????????### ##????????? | | ????????????????????????????????### ##???????? | | ????#???????????????????????###### ##??????? | | ????# #???????????????????### ## ###????? | | ????# ##????????????????#" ##????? | | ???## #???????????????## ##????? | | ???# #???????????????## "# ####### | | ??## #?###???????????###"### ## # | | ??# ##"############??##??## %= | | ???????# #???????## | | ???????## #????????## ### | | ????????### ### ## #?????????# ### | | ??????????##### ##?# ##k #?????????# | | ??????????????## ##??# ## #?????????## | | ???????????????# #???# ## #??????????## ## | | ??????????????? ??? ## #???????????# ## | | ??????????????# ###??#### #???????????# ## | | ??????????????# ??????## #???????????# "## | | ?????????????? ??????# ! #???????????# ### | | ??????????????##?????## %% #???????????## #?# | | ????????????????????## kh###########?## #?# | | ????????????????????# ### ##?## | | ????????????????????## @ t ##???? | | ?????????????????????## ####### ##????? | | ??????????????????????## ##?????#### ##????## | | ???????????????????????# #????? ### ######## | | ???????????????????????# ##### ####### | | ???????????????????????# ### | | ???????????????????????# | | ???????????????????????# ###### | | ???????????????????????# ####????? | | ??????????????????????# ##???????? | | ?????????????????????# ##????????? | | ?????????????????????# ## ##?????????? | | ?????????????????????######## #### ##??????????? | | ?????????????????????????????###??####???????????? | | ?????????????????????????????????????????????????? | | ?????????????????????????????????????????????????? | | | | | | | | | | | | | | | | | | | +----------------------------------------------------+ Best States ------------- Heat Dissipation 25 Energy Generation 5 Energy Capacity 100 Matter Stores 300 Matter Capacity 300 Sight Range 16 Terrain Scan Density 10 Evasion (%) 63 Item Schematics ----------------- None Robot Schematics ------------------ None Fabricated ------------ Nothing Repaired ---------- Nothing Studied --------- None Alien Tech Used ----------------- None Achievements -------------- None Challenges ------------ None RPGLIKE | -11 -10 -9 -9 -9 -8 --------- Run | Yrd Mat Mat Min Exi Min Levels Raised 2 | . . 1 . . 1 XP Earned 6550 | 3000 100 1500 850 350 750 XP Spent 3735 | . . . . 3100 635 Upgrades 13 | . . . . 5 8 Weapon Slot 2 | . . . . 2 . Core Integrity 7 | . . . . . 7 Mass Support 3 | . . . . 3 . Inventory Capacity 1 | . . . . . 1 Protomatter Created 26 | . . . 26 . . Integrity Restored 69 | . . . 69 . . Core 69 | . . . 69 . . Protomatter Decayed . | . . . . . . Game ------ Seed FortressBraceMaxwheels Manual? 0 Play Time 00:07:59 Cumulative 689.0 hours Start 2026.07.25 @ 15:39:57 End 2026.07.25 @ 15:45:35 Sessions 1 Manual Loads 0 Difficulty Rogue Special Mode Winter2019/RPGLIKE Game No. 351 Rogue 197 Adventurer 154 Explorer 0 Win Type - Total 24 Types 4/6/5/3/2/1/0/1/1/1 Lore% 95 Gallery% 89 Achievement% 68 Wizard Run 0 Options --------- Layout 0 ASCII 0 Keyboard 0 Movement Numpad Keybinds 0 Fullscreen 2 Font 18/SmallcapsGlow Map View 76x50 Zoom Use 0% Tactical HUD 1 Map Filters NONE Filters NONE Steam 1 RUN: 94fdd75a-e2ba-45fd-b129-8a3a44e0aefa